fUST/lending_fUST_20250408
["ID","MTS","AMOUNT","RATE_DAILY","PERIOD"]
[357454463,1744072278696,-459.9912206,0.00027945,2]
[357454464,1744072278706,-1302.21,0.00027945,2]
[357454465,1744072278716,-822.32,0.00027945,2]
[357454466,1744072278726,-586.6,0.00027945,2]
[357454467,1744072278736,-2863.04,0.00027945,2]
[357454468,1744072278746,-1809.72,0.00027945,2]
[357454469,1744072278756,-1698.96,0.00027945,2]
[357454470,1744072278766,-1648.87,0.00027945,2]
[357454471,1744072278775,-1498.83,0.00027945,2]
[357454472,1744072278786,-1155.35,0.00027945,2]
[357454473,1744072278796,-1146.31,0.00027945,2]
[357454474,1744072278806,-1027.64,0.00027945,2]
[357454475,1744072278816,-1023.13,0.00027945,2]
[357454476,1744072278826,-985.96,0.00027945,2]
[357454477,1744072278836,-528.61,0.00027945,2]
[357454478,1744072278846,-1239.2,0.00027945,2]
[357454479,1744072278856,-2365.3,0.00027945,2]
[357454480,1744072278866,-1215.4,0.00027945,2]
[357454481,1744072278877,-545.75,0.00027945,2]
[357454482,1744072278887,-1098.37,0.00027945,2]
[357454483,1744072278897,-753.93,0.00027945,2]
[357454484,1744072278907,-501.5,0.00027945,2]
[357454485,1744072278917,-8516.27,0.00027945,2]
[357454486,1744072278927,-405.02,0.00027945,2]
[357454487,1744072278937,-1013.38,0.00027945,2]
[357454488,1744072278947,-1848.98,0.00027945,2]
[357454489,1744072278957,-1239.8,0.00027945,2]
[357454490,1744072278967,-175.39,0.00027945,2]
[357454491,1744072278977,-958.54,0.00027945,2]
[357454492,1744072278987,-239.84119403,0.00027949,2]
[357454493,1744072278997,-419.36665037,0.00028,3]
[357454494,1744072279007,-501.71670732,0.00028219,2]
[357454495,1744072279017,-548.50848095,0.00028219,2]
[357454496,1744072279026,-536.84336971,0.00028219,2]
[357454497,1744072279036,-1120.05971226,0.00028219,2]
[357454498,1744072279046,-1199.69108906,0.00028219,2]
[357454499,1744072279061,-618.07246367,0.00028219,2]
[357454500,1744072279071,-1036.30577496,0.00028219,2]
[357454501,1744072279081,-528.55852935,0.00028219,2]
[357454502,1744072279091,-991.53291464,0.00028219,2]
[357454503,1744072279101,-627.52,0.00028219,2]
[357454504,1744072279111,-630.15962547,0.00028219,2]
[357454505,1744072279121,-1246.44378136,0.00028219,2]
[357454506,1744072279131,-764.78562964,0.00028219,2]
[357454507,1744072279141,-1246.63790896,0.00028219,2]
[357454508,1744072279151,-818.20585631,0.00028219,2]
[357454509,1744072279161,-446.18,0.00028219,2]
[357454510,1744072279170,-592.65,0.00028219,2]
[357454511,1744072279180,-766.55545027,0.00028219,2]
[357454512,1744072279191,-1098.30774188,0.00028219,2]
[357454513,1744072279202,-421.2,0.00028219,2]
[357454514,1744072279213,-1281.73,0.00028219,2]
[357454515,1744072279224,-657.46831143,0.00028219,2]
[357454516,1744072279234,-505.19692992,0.00028219,2]
[357454517,1744072279245,-2269.24,0.00028219,2]
[357454518,1744072279256,-522.16494557,0.00028219,2]
[357454519,1744072279266,-1136.40466219,0.00028219,2]
[357454520,1744072279276,-2122.27,0.00028219,2]
[357454521,1744072279286,-2281.99,0.00028219,2]
[357454522,1744072279296,-1249.68,0.00028219,2]
[357454523,1744072279306,-2553.37,0.00028219,2]
[357454524,1744072279317,-31.33284405,0.00028219,2]
[357454525,1744072281730,-500.0,0.00021917,2]
[357454526,1744072281740,-292.64,0.00021917,2]
[357454527,1744072281764,-207.36,0.00021917,2]
[357454528,1744072281774,-500.0,0.00021917,2]
[357454529,1744072281784,-500.0,0.00021917,2]
[357454530,1744072281793,-500.0,0.00022191,2]
[357454531,1744072281803,-500.0,0.00022191,2]
[357454532,1744072281813,-500.0,0.00022191,2]
[357454533,1744072281823,-500.0,0.00022191,2]
[357454534,1744072281832,-401.17217167,0.00022365,2]
[357454535,1744072281842,-500.0,0.00022465,2]
[357454536,1744072281852,-272.85184547,0.00022465,2]
[357454537,1744072282077,-227.14815453,0.00022465,2]
[357454538,1744072282087,-500.0,0.00022465,2]
[357454539,1744072282097,-1325.11,0.00022739,2]
[357454540,1744072282107,-500.0,0.00022739,2]
[357454541,1744072282117,-500.0,0.00022739,2]
[357454542,1744072282127,-500.0,0.00022739,2]
[357454543,1744072282142,-1325.11,0.00023013,2]
[357454544,1744072282153,-500.0,0.00023013,2]
[357454545,1744072282163,-500.0,0.00023013,2]
[357454546,1744072282173,-500.0,0.00023013,2]
[357454547,1744072282183,-949.72656919,0.00023287,2]
[357454548,1744072282204,-375.38343081,0.00023287,2]
[357454549,1744072282215,-500.0,0.00023287,2]
[357454550,1744072282226,-500.0,0.00023287,2]
[357454551,1744072282236,-500.0,0.00023287,2]
[357454552,1744072282247,-1325.11,0.00023561,2]
[357454553,1744072282257,-500.0071648,0.00023561,2]
[357454554,1744072282268,-306.97214915,0.00023561,2]
[357454562,1744072497357,-175.2567,0.00019786,2]
[357454567,1744072679220,-74.7433,0.00019786,2]
[357454568,1744072679243,-76.2567,0.0002003,2]
[357454570,1744072691020,-93.545101,0.0002003,2]
[357454571,1744072691043,-57.454899,0.00021004,2]
[357454573,1744072706604,-93.545101,0.00021004,2]
[357454574,1744072706628,-57.454899,0.00021004,2]
[357454578,1744072784448,-151.0,0.00020208,2]
[357454607,1744073224496,-151.0,0.00019686,2]
[357454608,1744073224520,-45.39257658,0.00020171,2]
[357454609,1744073232298,-164.16563292,0.00020171,2]
[357454610,1744073232325,-248.8324253,0.00020208,2]
[357454611,1744073232351,-2145.59505865,0.00020916,2]
[357454612,1744073232376,-358.37469547,0.00020917,2]
[357454613,1744073232402,-151.0,0.00021004,2]
[357454614,1744073232428,-259.8282021,0.00021004,2]
[357454615,1744073232456,-151.0,0.00021004,2]
[357454616,1744073232482,-200.0,0.00021004,2]
[357454617,1744073232508,-832.58,0.00021007,3]
[357454618,1744073232535,-514.49388746,0.00021014,2]
[357454619,1744073232562,-500.0,0.00021014,2]
[357454620,1744073232588,-28474.1300981,0.00021015,2]
[357454621,1744073244130,-13262.43538018,0.00021015,2]
[357454622,1744073244152,-500.0,0.00021015,2]
[357454623,1744073244172,-185.51470083,0.00021015,2]
[357454624,1744073244193,-78683.12134899,0.00021015,2]
[357454646,1744073432359,-151.0,0.00021004,2]
[357454647,1744073432369,-300.0,0.00021014,2]
[357454648,1744073432380,-9841.34127,0.00021015,2]
[357454649,1744073432392,-41175.42355003,0.00021015,2]
[357454650,1744073432404,-99885.42868627,0.00021015,2]
[357454651,1744073432414,-479.86029059,0.00021016,2]
[357454652,1744073432424,-185.90220341,0.00021016,2]
[357454653,1744073432433,-50073.58300281,0.00021017,2]
[357454675,1744073438509,-200.0,0.00021004,2]
[357454676,1744073438519,-1099.0,0.00021017,2]
[357454677,1744073438669,-318827.41699719,0.00021017,2]
[357454678,1744073438679,-156.587,0.00021059,2]
[357454679,1744073438690,-500.0,0.00021073,2]
[357454680,1744073438699,-500.0,0.00021073,2]
[357454681,1744073438709,-500.0,0.00021073,2]
[357454682,1744073438719,-500.0,0.00021073,2]
[357454683,1744073438729,-500.0,0.00021073,2]
[357454684,1744073438738,-500.0,0.00021073,2]
[357454685,1744073438748,-500.0,0.00021073,2]
[357454686,1744073438758,-500.0,0.00021073,2]
[357454687,1744073438768,-500.0,0.00021073,2]
[357454688,1744073438777,-500.0,0.00021073,2]
[357454689,1744073438787,-162.380719,0.00021114,2]
[357454690,1744073438796,-1723.29639324,0.0002114,2]
[357454691,1744073438805,-168.3888056,0.00021169,2]
[357454692,1744073438815,-358.37469545,0.00021211,2]
[357454693,1744073438824,-174.61919141,0.00021224,2]
[357454694,1744073438834,-181.08010149,0.00021279,2]
[357454695,1744073438843,-152.0,0.00021309,2]
[357454696,1744073438852,-187.78006525,0.00021334,2]
[357454697,1744073438861,-194.72792766,0.00021389,2]
[357454698,1744073438871,-201.93286099,0.00021444,2]
[357454699,1744073438881,-209.40437684,0.00021499,2]
[357454700,1744073438890,-358.37469545,0.00021504,2]
[357454701,1744073438899,-217.15233878,0.00021554,2]
[357454702,1744073438909,-225.18697532,0.00021609,2]
[357454703,1744073438920,-233.51889341,0.00021664,2]
[357454704,1744073438930,-451.68845244,0.00021719,2]
[357454705,1744073438940,-192.0,0.00021789,2]
[357454706,1744073438949,-358.37469545,0.00021798,2]
[357454707,1744073438959,-532.66529184,0.00021917,2]
[357454708,1744073438969,-594.95,0.00021917,2]
[357454709,1744073438979,-500.0,0.00021917,2]
[357454710,1744073438988,-500.0,0.00021917,2]
[357454711,1744073439001,-500.0,0.00021917,2]
[357454712,1744073439011,-507.25,0.00021917,2]
[357454713,1744073439022,-500.0,0.00021917,2]
[357454714,1744073439032,-392.9015133,0.00021917,2]
[357454715,1744073439041,-500.0,0.00021917,2]
[357454716,1744073439051,-500.0,0.00021917,2]
[357454717,1744073439061,-500.0,0.00021917,2]
[357454718,1744073439070,-500.0,0.00021917,2]
[357454719,1744073439080,-500.0,0.00021917,2]
[357454720,1744073439089,-500.0,0.00021917,2]
[357454721,1744073439099,-500.0,0.00021917,2]
[357454722,1744073439108,-500.0,0.00021917,2]
[357454723,1744073439118,-1284.95,0.00021917,2]
[357454724,1744073439128,-500.0,0.00021917,2]
[357454725,1744073439137,-500.0,0.00021917,2]
[357454726,1744073439147,-500.0,0.00021917,2]
[357454727,1744073439156,-519.3,0.00021917,2]
[357454728,1744073439166,-500.0,0.00021917,2]
[357454729,1744073439175,-500.0,0.00021917,2]
[357454730,1744073439185,-500.0,0.00021917,2]
[357454731,1744073439195,-419.32358035,0.00021917,2]
[357454732,1744073439204,-406.64075785,0.00021917,2]
[357454733,1744073439215,-500.0,0.00021917,2]
[357454734,1744073439224,-515.54,0.00021917,2]
[357454735,1744073439233,-774.11,0.00021917,2]
[357454736,1744073439243,-256.60748568,0.00021917,2]
[357454737,1744073439252,-500.0,0.00021917,2]
[357454738,1744073439262,-500.0,0.00021917,2]
[357454739,1744073439272,-500.0,0.00021917,2]
[357454740,1744073439282,-500.0,0.00021917,2]
[357454741,1744073439291,-500.0,0.00021917,2]
[357454742,1744073439301,-500.0,0.00021917,2]
[357454744,1744073439310,-500.0,0.00021917,2]
[357454745,1744073439320,-500.0,0.00021917,2]
[357454746,1744073439329,-500.0,0.00021917,2]
[357454748,1744073439339,-500.0,0.00021917,2]
[357454749,1744073439348,-500.0,0.00021917,2]
[357454751,1744073439357,-500.0,0.00021917,2]
[357454753,1744073439367,-500.0,0.00021917,2]
[357454755,1744073439377,-500.0,0.00021917,2]
[357454756,1744073439386,-500.0,0.00021917,2]
[357454758,1744073439396,-500.0,0.00021917,2]
[357454760,1744073439405,-500.0,0.00021917,2]
[357454762,1744073439415,-500.0,0.00021917,2]
[357454764,1744073439425,-500.0,0.00021917,2]
[357454766,1744073439434,-500.0,0.00021917,2]
[357454767,1744073439444,-500.0,0.00021917,2]
[357454769,1744073439454,-471.60439447,0.00021917,2]
[357454770,1744073439464,-500.0,0.00021917,2]
[357454771,1744073439476,-500.0,0.00021917,2]
[357454772,1744073439486,-502.92634945,0.00021917,2]
[357454773,1744073439496,-500.0,0.00021917,2]
[357454774,1744073439506,-500.0,0.00021917,2]
[357454775,1744073439515,-500.0,0.00021917,2]
[357454776,1744073439525,-500.0,0.00021917,2]
[357454777,1744073439535,-500.0,0.00021917,2]
[357454778,1744073439545,-500.0,0.00021917,2]
[357454779,1744073439554,-500.0,0.00021917,2]
[357454780,1744073439564,-500.0,0.00021917,2]
[357454781,1744073439574,-500.0,0.00021917,2]
[357454782,1744073439584,-500.0,0.00021917,2]
[357454783,1744073439594,-500.0,0.00021917,2]
[357454784,1744073439604,-500.0,0.00021917,2]
[357454785,1744073439614,-500.0,0.00021917,2]
[357454786,1744073439623,-500.0,0.00021917,2]
[357454787,1744073439633,-637.58,0.00021917,2]
[357454788,1744073439642,-500.0,0.00021917,2]
[357454789,1744073439652,-619.99,0.00021917,2]
[357454790,1744073439662,-500.0,0.00021917,2]
[357454791,1744073439672,-500.0,0.00021917,2]
[357454792,1744073439681,-500.0,0.00021917,2]
[357454793,1744073439691,-500.0,0.00021917,2]
[357454794,1744073439701,-500.0,0.00021917,2]
[357454795,1744073439711,-500.0,0.00021917,2]
[357454796,1744073439721,-500.0,0.00021917,2]
[357454797,1744073439730,-500.0,0.00021917,2]
[357454798,1744073439740,-500.0,0.00021917,2]
[357454799,1744073439750,-551.52,0.00021917,2]
[357454800,1744073439760,-500.0,0.00021917,2]
[357454801,1744073439770,-500.0,0.00021917,2]
[357454802,1744073439782,-762.18,0.00021917,2]
[357454803,1744073439792,-500.0,0.00021917,2]
[357454804,1744073439802,-500.0,0.00021917,2]
[357454805,1744073439811,-610.61,0.00021917,2]
[357454806,1744073439822,-500.0,0.00021917,2]
[357454807,1744073439832,-500.0,0.00021917,2]
[357454808,1744073439842,-481.53185672,0.00021917,2]
[357454809,1744073439852,-798.41,0.00021917,2]
[357454810,1744073439862,-666.56,0.00021917,2]
[357454811,1744073439871,-500.0,0.00021917,2]
[357454812,1744073439881,-568.42,0.00021917,2]
[357454813,1744073439892,-500.0,0.00021917,2]
[357454814,1744073439901,-438.47735175,0.00021917,2]
[357454815,1744073439910,-500.0,0.00021917,2]
[357454816,1744073439923,-500.0,0.00021917,2]
[357454817,1744073439933,-500.0,0.00021917,2]
[357454818,1744073439942,-595.32,0.00021917,2]
[357454819,1744073439952,-500.0,0.00021917,2]
[357454820,1744073439962,-1478.81,0.00021917,2]
[357454821,1744073439974,-500.0,0.00021917,2]
[357454822,1744073439984,-500.0,0.00021917,2]
[357454823,1744073439995,-523.17,0.00021917,2]
[357454824,1744073440007,-500.0,0.00021917,2]
[357454825,1744073440018,-500.0,0.00021917,2]
[357454826,1744073440028,-500.0,0.00021917,2]
[357454827,1744073440038,-1266.69,0.00021917,2]
[357454828,1744073440048,-500.0,0.00021917,2]
[357454829,1744073440057,-500.0,0.00021917,2]
[357454830,1744073440067,-500.0,0.00021917,2]
[357454831,1744073440078,-200.0,0.00021917,2]
[357454832,1744073440087,-1197.93,0.00021917,2]
[357454833,1744073440097,-500.0,0.00021917,2]
[357454834,1744073440107,-500.0,0.00021917,2]
[357454835,1744073440117,-528.61,0.00021917,2]
[357454836,1744073440127,-878.01,0.00021917,2]
[357454837,1744073440137,-500.0,0.00021917,2]
[357454838,1744073440149,-500.0,0.00021917,2]
[357454839,1744073440159,-500.0,0.00021917,2]
[357454840,1744073440169,-500.0,0.00021917,2]
[357454841,1744073440179,-500.0,0.00021917,2]
[357454842,1744073440188,-500.0,0.00021917,2]
[357454843,1744073440198,-500.0,0.00021917,2]
[357454844,1744073440207,-500.0,0.00021917,2]
[357454845,1744073440217,-500.0,0.00021917,2]
[357454846,1744073440227,-993.51,0.00021917,2]
[357454847,1744073440236,-1465.53,0.00021917,2]
[357454848,1744073440247,-500.0,0.00021917,2]
[357454849,1744073440257,-500.0,0.00021917,2]
[357454850,1744073440267,-365.90068017,0.00021917,2]
[357454851,1744073440278,-500.0,0.00021917,2]
[357454852,1744073440288,-500.0,0.00021917,2]
[357454853,1744073440299,-500.0,0.00021917,2]
[357454854,1744073440309,-500.0,0.00021917,2]
[357454855,1744073440320,-500.0,0.00021917,2]
[357454856,1744073440330,-500.0,0.00021917,2]
[357454857,1744073440340,-500.0,0.00021917,2]
[357454858,1744073440350,-545.8,0.00021917,2]
[357454859,1744073440359,-500.0,0.00021917,2]
[357454860,1744073440370,-500.0,0.00021917,2]
[357454861,1744073440380,-500.0,0.00021917,2]
[357454862,1744073440390,-500.0,0.00021917,2]
[357454863,1744073440400,-500.0,0.00021917,2]
[357454864,1744073440410,-689.47,0.00021917,2]
[357454865,1744073440420,-500.0,0.00021917,2]
[357454866,1744073440430,-591.84,0.00021917,2]
[357454867,1744073440440,-500.0,0.00021917,2]
[357454868,1744073440450,-540.76957345,0.00021917,2]
[357454869,1744073440460,-500.0,0.00021917,2]
[357454870,1744073440470,-1000.21,0.00021917,2]
[357454872,1744073440480,-500.0,0.00021917,2]
[357454874,1744073440490,-500.0,0.00021917,2]
[357454876,1744073440500,-500.0,0.00021917,2]
[357454881,1744073440678,-1104.26,0.00021917,2]
[357454883,1744073440688,-531.60392033,0.00021917,2]
[357454885,1744073440698,-518.15,0.00021917,2]
[357454887,1744073440708,-500.0,0.00021917,2]
[357454889,1744073440719,-500.0,0.00021917,2]
[357454891,1744073440728,-500.0,0.00021917,2]
[357454893,1744073440738,-500.0,0.00021917,2]
[357454895,1744073440747,-500.0,0.00021917,2]
[357454897,1744073440757,-500.0,0.00021917,2]
[357454899,1744073440766,-500.0,0.00021917,2]
[357454901,1744073440776,-500.0,0.00021917,2]
[357454903,1744073440785,-500.0,0.00021917,2]
[357454905,1744073440795,-500.0,0.00021917,2]
[357454907,1744073440804,-500.0,0.00021917,2]
[357454909,1744073440814,-500.0,0.00021917,2]
[357454911,1744073440824,-500.0,0.00021917,2]
[357454912,1744073440833,-500.0,0.00021917,2]
[357454914,1744073440843,-500.0,0.00021917,2]
[357454916,1744073440852,-500.0,0.00021917,2]
[357454918,1744073440862,-500.0,0.00021917,2]
[357454920,1744073440872,-500.0,0.00021917,2]
[357454922,1744073440882,-1404.5,0.00021917,2]
[357454924,1744073440892,-522.25,0.00021917,2]
[357454926,1744073440901,-500.0,0.00021917,2]
[357454928,1744073440911,-1550.56,0.00021917,2]
[357454930,1744073440923,-500.0,0.00021917,2]
[357454932,1744073440932,-500.0,0.00021917,2]
[357454934,1744073440942,-559.21,0.00021917,2]
[357454936,1744073440951,-500.0,0.00021917,2]
[357454938,1744073440961,-1304.88,0.00021917,2]
[357454939,1744073440970,-540.58160861,0.00021917,2]
[357454941,1744073440979,-500.0,0.00021917,2]
[357454943,1744073440989,-2906.86,0.00021917,2]
[357454945,1744073440999,-567.46,0.00021917,2]
[357454947,1744073441009,-636.08,0.00021917,2]
[357454949,1744073441019,-500.0,0.00021917,2]
[357454951,1744073441028,-500.0,0.00021917,2]
[357454953,1744073441038,-1332.6,0.00021917,2]
[357454955,1744073441047,-500.0,0.00021917,2]
[357454957,1744073441057,-500.0,0.00021917,2]
[357454959,1744073441066,-500.0,0.00021917,2]
[357454960,1744073441076,-500.0,0.00021917,2]
[357454962,1744073441085,-2435.82,0.00021917,2]
[357454964,1744073441095,-564.44,0.00021917,2]
[357454966,1744073441104,-816.67,0.00021917,2]
[357454968,1744073441116,-500.0,0.00021917,2]
[357454970,1744073441127,-500.0,0.00021917,2]
[357454972,1744073441137,-2284.41,0.00021917,2]
[357454974,1744073441146,-500.0,0.00021917,2]
[357454976,1744073441155,-500.48683344,0.00021917,2]
[357454977,1744073441165,-539.99,0.00021917,2]
[357454979,1744073441174,-500.0,0.00021917,2]
[357454981,1744073441184,-774.84,0.00021917,2]
[357454983,1744073441195,-237.04056397,0.00021917,2]
[357454985,1744073441205,-1559.28,0.00021917,2]
[357454987,1744073441215,-1168.9,0.00021917,2]
[357454989,1744073441224,-2749.42,0.00021917,2]
[357454991,1744073441233,-521.85518032,0.00021917,2]
[357454993,1744073441243,-500.0,0.00021917,2]
[357454995,1744073441253,-208.10056394,0.00021917,2]
[357454997,1744073441262,-500.0,0.00021917,2]
[357454999,1744073441272,-500.0,0.00021917,2]
[357455001,1744073441282,-1353.57,0.00021917,2]
[357455003,1744073441292,-500.0,0.00021917,2]
[357455005,1744073441302,-192.99163282,0.00021917,2]
[357455007,1744073441311,-500.0,0.00021917,2]
[357455009,1744073441321,-500.0,0.00021917,2]
[357455011,1744073441331,-520.31216387,0.00021917,2]
[357455013,1744073441340,-1377.29,0.00021917,2]
[357455014,1744073441350,-500.0,0.00021917,2]
[357455016,1744073441360,-200.0,0.00021917,2]
[357455018,1744073441369,-500.0,0.00021917,2]
[357455020,1744073441380,-500.0,0.00021917,2]
[357455022,1744073441389,-516.91751121,0.00021917,2]
[357455024,1744073441399,-523.75,0.00021917,2]
[357455026,1744073441408,-500.0,0.00021917,2]
[357455028,1744073441417,-500.0,0.00021917,2]
[357455030,1744073441426,-500.0,0.00021917,2]
[357455032,1744073441437,-2417.25,0.00021917,2]
[357455034,1744073441447,-440.79983363,0.00021917,2]
[357455036,1744073441457,-5291.2,0.00021917,2]
[357455038,1744073441466,-1100.81,0.00021917,2]
[357455040,1744073441476,-500.0,0.00021917,2]
[357455041,1744073441485,-500.0,0.00021917,2]
[357455044,1744073441495,-262.9011253,0.00021917,2]
[357455045,1744073441505,-3065.26,0.00021917,2]
[357455047,1744073441515,-209.80321001,0.00021917,2]
[357455049,1744073441524,-500.0,0.00021917,2]
[357455051,1744073441533,-500.0,0.00021917,2]
[357455053,1744073441543,-500.0,0.00021917,2]
[357455055,1744073441553,-1661.41,0.00021917,2]
[357455057,1744073441562,-957.37,0.00021917,2]
[357455059,1744073441572,-500.0,0.00021917,2]
[357455061,1744073441582,-500.0,0.00021917,2]
[357455063,1744073441591,-500.0,0.00021917,2]
[357455065,1744073441602,-516.45818109,0.00021917,2]
[357455067,1744073441611,-500.0,0.00021917,2]
[357455069,1744073441621,-500.0,0.00021917,2]
[357455071,1744073441632,-500.0,0.00021917,2]
[357455073,1744073441642,-1814.5,0.00021917,2]
[357455075,1744073441652,-1937.54,0.00021917,2]
[357455077,1744073441661,-631.45,0.00021917,2]
[357455079,1744073441671,-500.0,0.00021917,2]
[357455081,1744073441681,-500.0,0.00021917,2]
[357455083,1744073441690,-523.67155021,0.00021917,2]
[357455085,1744073441700,-500.0,0.00021917,2]
[357455087,1744073441709,-500.0,0.00021917,2]
[357455089,1744073441719,-1807.0,0.00021917,2]
[357455091,1744073441729,-1563.99,0.00021917,2]
[357455093,1744073441739,-500.0,0.00021917,2]
[357455095,1744073441748,-765.88,0.00021917,2]
[357455096,1744073441758,-500.0,0.00021917,2]
[357455098,1744073441768,-500.0,0.00021917,2]
[357455100,1744073441778,-500.0,0.00021917,2]
[357455102,1744073441787,-511.68162819,0.00021917,2]
[357455104,1744073441797,-502.20989369,0.00021917,2]
[357455106,1744073441807,-500.0,0.00021917,2]
[357455108,1744073441816,-500.0,0.00021917,2]
[357455110,1744073441826,-525.55442736,0.00021917,2]
[357455112,1744073441836,-500.0,0.00021917,2]
[357455114,1744073441845,-1094.87,0.00021917,2]
[357455116,1744073441856,-500.0,0.00021917,2]
[357455118,1744073441866,-500.0,0.00021917,2]
[357455120,1744073441876,-844.05,0.00021917,2]
[357455122,1744073441885,-500.0,0.00021917,2]
[357455124,1744073441895,-513.59,0.00021917,2]
[357455126,1744073441906,-1239.2,0.00021917,2]
[357455128,1744073441916,-500.0,0.00021917,2]
[357455130,1744073441929,-510.72565306,0.00021917,2]
[357455132,1744073441938,-500.0,0.00021917,2]
[357455134,1744073441948,-504.32029485,0.00021917,2]
[357455136,1744073441958,-508.66173035,0.00021917,2]
[357455138,1744073441968,-993.95,0.00021917,2]
[357455140,1744073441977,-500.0,0.00021917,2]
[357455142,1744073441987,-1205.59,0.00021917,2]
[357455144,1744073441996,-1288.17,0.00021917,2]
[357455146,1744073442007,-500.0,0.00021917,2]
[357455148,1744073442017,-500.0,0.00021917,2]
[357455150,1744073442027,-504.38752415,0.00021917,2]
[357455152,1744073442037,-500.0,0.00021917,2]
[357455154,1744073442047,-500.0,0.00021917,2]
[357455156,1744073442056,-500.0,0.00021917,2]
[357455157,1744073442065,-1146.31,0.00021917,2]
[357455158,1744073442074,-500.0,0.00021917,2]
[357455159,1744073442084,-8516.27,0.00021917,2]
[357455160,1744073442093,-515.27,0.00021917,2]
[357455161,1744073442103,-500.0,0.00021917,2]
[357455162,1744073442112,-500.0,0.00021917,2]
[357455163,1744073442121,-1134.69,0.00021917,2]
[357455164,1744073442132,-1134.69,0.00021917,2]
[357455165,1744073442141,-1134.69,0.00021917,2]
[357455166,1744073442150,-1134.69,0.00021917,2]
[357455167,1744073442159,-1134.69,0.00021917,2]
[357455168,1744073442168,-1134.69,0.00021917,2]
[357455169,1744073442178,-1134.69,0.00021917,2]
[357455170,1744073442187,-1134.69,0.00021917,2]
[357455171,1744073442196,-1134.69,0.00021917,2]
[357455172,1744073442206,-1134.69,0.00021917,2]
[357455173,1744073442215,-1134.69,0.00021917,2]
[357455174,1744073442225,-1134.69,0.00021917,2]
[357455175,1744073442234,-1134.69,0.00021917,2]
[357455176,1744073442244,-500.0,0.00021917,2]
[357455177,1744073442253,-1134.69,0.00021917,2]
[357455178,1744073442263,-1134.69,0.00021917,2]
[357455179,1744073442272,-1134.69,0.00021917,2]
[357455180,1744073442282,-1134.69,0.00021917,2]
[357455181,1744073442291,-1134.69,0.00021917,2]
[357455182,1744073442301,-1134.69,0.00021917,2]
[357455183,1744073442310,-1134.69,0.00021917,2]
[357455184,1744073442320,-1134.69,0.00021917,2]
[357455185,1744073442329,-1134.69,0.00021917,2]
[357455186,1744073442339,-1134.69,0.00021917,2]
[357455187,1744073442349,-1134.75513712,0.00021917,2]
[357455188,1744073442358,-510.92395279,0.00021917,2]
[357455189,1744073442368,-808.45,0.00021917,2]
[357455190,1744073442377,-500.0,0.00021917,2]
[357455191,1744073442387,-515.65776438,0.00021917,2]
[357455192,1744073442396,-2424.22,0.00021917,2]
[357455193,1744073442406,-500.0,0.00021917,2]
[357455194,1744073442415,-1749.01,0.00021917,2]
[357455195,1744073442425,-1135.59,0.00021917,2]
[357455196,1744073442435,-523.31,0.00021917,2]
[357455197,1744073442445,-512.08798033,0.00021917,2]
[357455198,1744073442454,-500.0,0.00021917,2]
[357455199,1744073442463,-500.0,0.00021917,2]
[357455200,1744073442473,-1890.65,0.00021917,2]